[Event "Titled Tuesday Blitz August 08 Late 2023"]
[White "Ozdemir, Serhan Berat"]
[Black "Rego, Pedro Filipe"]
[WhiteFideId "6374611"]
[BlackFideId "1904310"]
[WhiteElo "2648"]
[BlackElo "2397"]
[Result "0-1"]
[Round "4"]
[TimeControl "180+1"]
[Date "2023.08.08"]
[WhiteClock "0:00:00"]
[BlackClock "0:01:04"]
[Board "76"]

1. e4 {[%clk 0:02:58]}  c5 {[%clk 0:02:59]} 2. Nf3 {[%clk 0:02:47]}  d6 {[%clk 0:02:58]} 3. d4 {[%clk 0:02:41]}  cxd4 {[%clk 0:02:59]} 4. Nxd4 {[%clk 0:02:41]}  Nf6 {[%clk 0:02:59]} 5. Nc3 {[%clk 0:02:27]}  Nc6 {[%clk 0:02:55]} 6. Bg5 {[%clk 0:02:25]}  e6 {[%clk 0:02:55]} 7. Qd2 {[%clk 0:02:23]}  a6 {[%clk 0:02:53]} 8. O-O-O {[%clk 0:02:10]}  Bd7 {[%clk 0:02:52]} 9. f4 {[%clk 0:02:10]}  Be7 {[%clk 0:02:46]} 10. Kb1 {[%clk 0:01:56]}  b5 {[%clk 0:02:44]} 11. Nxc6 {[%clk 0:01:55]}  Bxc6 {[%clk 0:02:44]} 12. Bxf6 {[%clk 0:01:54]}  Bxf6 {[%clk 0:02:40]} 13. Qxd6 {[%clk 0:01:49]}  Qb6 {[%clk 0:02:13]} 14. Nd5 {[%clk 0:01:35]}  exd5 {[%clk 0:02:13]} 15. exd5 {[%clk 0:01:35]}  Be7 {[%clk 0:02:09]} 16. Re1 {[%clk 0:01:32]}  Ra7 {[%clk 0:02:03]} 17. dxc6 {[%clk 0:01:15]}  Qd8 {[%clk 0:01:43]} 18. Qc5 {[%clk 0:00:50]}  Rc7 {[%clk 0:01:36]} 19. Bd3 {[%clk 0:00:46]}  O-O {[%clk 0:01:36]} 20. Qf5 {[%clk 0:00:33]}  g6 {[%clk 0:01:36]} 21. Qe4 {[%clk 0:00:34]}  Bf6 {[%clk 0:01:36]} 22. h4 {[%clk 0:00:31]}  Qd6 {[%clk 0:01:27]} 23. h5 {[%clk 0:00:30]}  Re7 {[%clk 0:01:16]} 24. Qf3 {[%clk 0:00:26]}  Rxe1+ {[%clk 0:01:14]} 25. Rxe1 {[%clk 0:00:25]}  Qb4 {[%clk 0:01:14]} 26. c3 {[%clk 0:00:14]}  Bxc3 {[%clk 0:01:14]} 27. Re2 {[%clk 0:00:15]}  Bf6 {[%clk 0:01:12]} 28. hxg6 {[%clk 0:00:13]}  hxg6 {[%clk 0:01:11]} 29. Rc2 {[%clk 0:00:00]}  Re8 {[%clk 0:01:04]} 0-1


[Site "https://www.chess.com"]

[Event "Titled Tuesday Blitz August 08 Late 2023"]
[White "Wieczorek, Oskar"]
[Black "Hoffmann, Asa"]
[WhiteFideId "1133950"]
[BlackFideId "2001470"]
[WhiteElo "2644"]
[BlackElo "2366"]
[Result "1-0"]
[Round "4"]
[TimeControl "180+1"]
[Date "2023.08.08"]
[WhiteClock "0:00:38"]
[BlackClock "0:00:05"]
[Board "78"]

1. e4 {[%clk 0:03:00]}  d6 {[%clk 0:02:58]} 2. d4 {[%clk 0:03:01]}  Nf6 {[%clk 0:02:56]} 3. f3 {[%clk 0:03:01]}  Nbd7 {[%clk 0:02:55]} 4. c4 {[%clk 0:03:00]}  e5 {[%clk 0:02:55]} 5. Be3 {[%clk 0:02:58]}  Be7 {[%clk 0:02:54]} 6. Ne2 {[%clk 0:02:57]}  c6 {[%clk 0:02:54]} 7. Nbc3 {[%clk 0:02:57]}  Qc7 {[%clk 0:02:53]} 8. Qd2 {[%clk 0:02:58]}  a6 {[%clk 0:02:52]} 9. d5 {[%clk 0:02:55]}  c5 {[%clk 0:02:49]} 10. a4 {[%clk 0:02:53]}  b6 {[%clk 0:02:48]} 11. g4 {[%clk 0:02:51]}  h6 {[%clk 0:02:48]} 12. Ng3 {[%clk 0:02:49]}  Nf8 {[%clk 0:02:45]} 13. h4 {[%clk 0:02:48]}  Bd7 {[%clk 0:02:37]} 14. Bd3 {[%clk 0:02:46]}  Rb8 {[%clk 0:02:01]} 15. Kf2 {[%clk 0:02:42]}  Bxg4 {[%clk 0:01:57]} 16. fxg4 {[%clk 0:02:42]}  Nxg4+ {[%clk 0:01:57]} 17. Kg2 {[%clk 0:02:38]}  Nxe3+ {[%clk 0:01:56]} 18. Qxe3 {[%clk 0:02:38]}  Ng6 {[%clk 0:01:56]} 19. Nf5 {[%clk 0:02:21]}  Nf4+ {[%clk 0:01:55]} 20. Kf2 {[%clk 0:02:18]}  g6 {[%clk 0:01:54]} 21. Nxe7 {[%clk 0:02:15]}  Qxe7 {[%clk 0:01:53]} 22. Ne2 {[%clk 0:02:15]}  Qf6 {[%clk 0:01:49]} 23. Nxf4 {[%clk 0:01:59]}  exf4 {[%clk 0:01:48]} 24. Qd2 {[%clk 0:01:54]}  Kd7 {[%clk 0:01:40]} 25. Qc3 {[%clk 0:01:53]}  Qd4+ {[%clk 0:01:21]} 26. Qxd4 {[%clk 0:01:52]}  cxd4 {[%clk 0:01:21]} 27. Kf3 {[%clk 0:01:43]}  g5 {[%clk 0:01:20]} 28. a5 {[%clk 0:01:35]}  bxa5 {[%clk 0:01:18]} 29. hxg5 {[%clk 0:01:33]}  hxg5 {[%clk 0:01:09]} 30. Rxh8 {[%clk 0:01:12]}  Rxh8 {[%clk 0:01:08]} 31. Kg4 {[%clk 0:01:12]}  f6 {[%clk 0:01:02]} 32. Rxa5 {[%clk 0:01:07]}  Rh4+ {[%clk 0:01:02]} 33. Kf5 {[%clk 0:01:07]}  Rh3 {[%clk 0:01:02]} 34. Ra3 {[%clk 0:00:51]}  Re3 {[%clk 0:00:57]} 35. Kg4 {[%clk 0:00:44]}  Ke7 {[%clk 0:00:52]} 36. b4 {[%clk 0:00:40]}  Kf7 {[%clk 0:00:46]} 37. b5 {[%clk 0:00:40]}  axb5 {[%clk 0:00:42]} 38. cxb5 {[%clk 0:00:41]}  f3 {[%clk 0:00:34]} 39. Kg3 {[%clk 0:00:37]}  g4 {[%clk 0:00:30]} 40. b6 {[%clk 0:00:38]}  f5 {[%clk 0:00:05]} 41. exf5 {[%clk 0:00:38]} 1-0


[Site "https://www.chess.com"]

[Event "Titled Tuesday Blitz August 08 Late 2023"]
[White "Fernandez Siles, Luis"]
[Black "Tsvetkov, Andrey"]
[WhiteFideId "2209420"]
[BlackFideId "34139360"]
[WhiteElo "2346"]
[BlackElo "2638"]
[Result "0-1"]
[Round "4"]
[TimeControl "180+1"]
[Date "2023.08.08"]
[WhiteClock "0:00:00"]
[BlackClock "0:00:10"]
[Board "80"]

1. e4 {[%clk 0:03:00]}  c5 {[%clk 0:02:56]} 2. Nf3 {[%clk 0:03:00]}  d6 {[%clk 0:02:55]} 3. Bb5+ {[%clk 0:03:00]}  Nd7 {[%clk 0:02:53]} 4. O-O {[%clk 0:02:59]}  a6 {[%clk 0:02:52]} 5. Bd3 {[%clk 0:02:59]}  Ngf6 {[%clk 0:02:51]} 6. Re1 {[%clk 0:02:59]}  g6 {[%clk 0:02:51]} 7. c3 {[%clk 0:02:59]}  Bh6 {[%clk 0:02:51]} 8. Bc2 {[%clk 0:02:54]}  Ne5 {[%clk 0:02:52]} 9. h3 {[%clk 0:02:40]}  O-O {[%clk 0:02:49]} 10. Qe2 {[%clk 0:02:38]}  Qc7 {[%clk 0:02:43]} 11. d3 {[%clk 0:02:36]}  Bxc1 {[%clk 0:02:28]} 12. Rxc1 {[%clk 0:02:35]}  b5 {[%clk 0:02:28]} 13. Nbd2 {[%clk 0:02:31]}  Bb7 {[%clk 0:02:27]} 14. Nf1 {[%clk 0:02:28]}  Rac8 {[%clk 0:02:24]} 15. N3h2 {[%clk 0:02:15]}  c4 {[%clk 0:02:17]} 16. d4 {[%clk 0:02:13]}  Nd3 {[%clk 0:02:17]} 17. Bxd3 {[%clk 0:02:06]}  cxd3 {[%clk 0:02:18]} 18. Qxd3 {[%clk 0:02:06]}  Nxe4 {[%clk 0:02:15]} 19. Re1 {[%clk 0:01:59]}  Qc4 {[%clk 0:02:06]} 20. Qe3 {[%clk 0:01:52]}  Rfe8 {[%clk 0:02:02]} 21. Qh6 {[%clk 0:01:45]}  Qd5 {[%clk 0:01:57]} 22. Ne3 {[%clk 0:01:36]}  Qg5 {[%clk 0:01:56]} 23. Qxg5 {[%clk 0:01:33]}  Nxg5 {[%clk 0:01:57]} 24. f3 {[%clk 0:01:27]}  h5 {[%clk 0:01:51]} 25. h4 {[%clk 0:01:26]}  Ne6 {[%clk 0:01:51]} 26. g3 {[%clk 0:01:24]}  b4 {[%clk 0:01:50]} 27. Rac1 {[%clk 0:01:16]}  bxc3 {[%clk 0:01:48]} 28. bxc3 {[%clk 0:01:16]}  Rc7 {[%clk 0:01:49]} 29. d5 {[%clk 0:01:01]}  Nc5 {[%clk 0:01:48]} 30. Rb1 {[%clk 0:00:57]}  Rec8 {[%clk 0:01:43]} 31. c4 {[%clk 0:00:51]}  a5 {[%clk 0:01:41]} 32. Rb5 {[%clk 0:00:46]}  a4 {[%clk 0:01:41]} 33. Ra5 {[%clk 0:00:46]}  Ra8 {[%clk 0:01:22]} 34. Rxa8+ {[%clk 0:00:45]}  Bxa8 {[%clk 0:01:23]} 35. f4 {[%clk 0:00:45]}  Bb7 {[%clk 0:01:22]} 36. f5 {[%clk 0:00:45]}  Nd3 {[%clk 0:01:21]} 37. Rb1 {[%clk 0:00:41]}  Ba6 {[%clk 0:01:18]} 38. fxg6 {[%clk 0:00:39]}  fxg6 {[%clk 0:01:18]} 39. Rb8+ {[%clk 0:00:34]}  Kg7 {[%clk 0:01:16]} 40. Nf3 {[%clk 0:00:25]}  Rc8 {[%clk 0:01:02]} 41. Rxc8 {[%clk 0:00:21]}  Bxc8 {[%clk 0:01:03]} 42. Nd4 {[%clk 0:00:20]}  Kf6 {[%clk 0:00:59]} 43. Nc6 {[%clk 0:00:18]}  Ba6 {[%clk 0:00:55]} 44. Kf1 {[%clk 0:00:15]}  a3 {[%clk 0:00:49]} 45. Ke2 {[%clk 0:00:13]}  Nc1+ {[%clk 0:00:49]} 46. Kd2 {[%clk 0:00:10]}  Nxa2 {[%clk 0:00:31]} 47. Nb8 {[%clk 0:00:10]}  Nb4 {[%clk 0:00:28]} 48. Kc3 {[%clk 0:00:09]}  a2 {[%clk 0:00:27]} 49. Kb2 {[%clk 0:00:09]}  Bc8 {[%clk 0:00:27]} 50. Nc6 {[%clk 0:00:06]}  Nxc6 {[%clk 0:00:14]} 51. dxc6 {[%clk 0:00:07]}  e6 {[%clk 0:00:15]} 52. Kxa2 {[%clk 0:00:07]}  Ke5 {[%clk 0:00:16]} 53. Kb3 {[%clk 0:00:06]}  Kd4 {[%clk 0:00:16]} 54. Nc2+ {[%clk 0:00:06]}  Kc5 {[%clk 0:00:17]} 55. Ne3 {[%clk 0:00:03]}  Kxc6 {[%clk 0:00:16]} 56. Kb4 {[%clk 0:00:04]}  e5 {[%clk 0:00:10]} 57. Nd5 {[%clk 0:00:04]}  Kd7 {[%clk 0:00:09]} 58. Kb5 {[%clk 0:00:03]}  Bb7 {[%clk 0:00:09]} 59. Ne3 {[%clk 0:00:01]}  Ke6 {[%clk 0:00:09]} 60. Kb6 {[%clk 0:00:01]}  Be4 {[%clk 0:00:09]} 61. Kc7 {[%clk 0:00:01]}  d5 {[%clk 0:00:09]} 62. c5 {[%clk 0:00:00]}  d4 {[%clk 0:00:10]} 0-1


[Site "https://www.chess.com"]

[Event "Titled Tuesday Blitz August 08 Late 2023"]
[White "Tologon tegin, Semetei"]
[Black "Gerbelli Neto, Eduardo"]
[WhiteFideId "13800574"]
[BlackFideId "2103281"]
[WhiteElo "2619"]
[BlackElo "2334"]
[Result "1-0"]
[Round "4"]
[TimeControl "180+1"]
[Date "2023.08.08"]
[WhiteClock "0:01:23"]
[BlackClock "0:00:46"]
[Board "81"]

1. e4 {[%clk 0:02:45]}  e5 {[%clk 0:02:59]} 2. Nc3 {[%clk 0:02:39]}  Nf6 {[%clk 0:02:58]} 3. f4 {[%clk 0:02:39]}  d5 {[%clk 0:02:58]} 4. fxe5 {[%clk 0:02:39]}  Nxe4 {[%clk 0:02:57]} 5. Nf3 {[%clk 0:02:40]}  Bc5 {[%clk 0:02:54]} 6. d4 {[%clk 0:02:39]}  Bb4 {[%clk 0:02:54]} 7. Bd2 {[%clk 0:02:39]}  c5 {[%clk 0:02:54]} 8. Bd3 {[%clk 0:02:25]}  Nxd2 {[%clk 0:02:47]} 9. Qxd2 {[%clk 0:02:19]}  c4 {[%clk 0:02:15]} 10. Be2 {[%clk 0:02:12]}  Nc6 {[%clk 0:02:07]} 11. O-O {[%clk 0:02:11]}  Be6 {[%clk 0:02:05]} 12. Qe3 {[%clk 0:02:04]}  O-O {[%clk 0:01:55]} 13. Ng5 {[%clk 0:01:41]}  Be7 {[%clk 0:01:55]} 14. Nxe6 {[%clk 0:01:39]}  fxe6 {[%clk 0:01:56]} 15. Bg4 {[%clk 0:01:37]}  Qd7 {[%clk 0:01:51]} 16. Ne2 {[%clk 0:01:35]}  h6 {[%clk 0:01:22]} 17. Qh3 {[%clk 0:01:28]}  Rxf1+ {[%clk 0:01:20]} 18. Rxf1 {[%clk 0:01:27]}  Nd8 {[%clk 0:01:14]} 19. Nf4 {[%clk 0:01:27]}  Qb5 {[%clk 0:00:46]} 20. Bxe6+ {[%clk 0:01:23]} 1-0


[Site "https://www.chess.com"]

[Event "Titled Tuesday Blitz August 08 Late 2023"]
[White "Goldin, Alexander"]
[Black "Vafin, Ayrat"]
[WhiteFideId "2019540"]
[BlackFideId "4146530"]
[WhiteElo "2618"]
[BlackElo "2315"]
[Result "1-0"]
[Round "4"]
[TimeControl "180+1"]
[Date "2023.08.08"]
[WhiteClock "0:00:17"]
[BlackClock "0:00:01"]
[Board "82"]

1. Nf3 {[%clk 0:02:59]}  d5 {[%clk 0:02:58]} 2. g3 {[%clk 0:02:59]}  Nf6 {[%clk 0:02:58]} 3. Bg2 {[%clk 0:02:59]}  Bg4 {[%clk 0:02:58]} 4. c4 {[%clk 0:02:58]}  Bxf3 {[%clk 0:02:54]} 5. Bxf3 {[%clk 0:02:58]}  c6 {[%clk 0:02:55]} 6. Qb3 {[%clk 0:02:55]}  Qb6 {[%clk 0:02:40]} 7. Qc2 {[%clk 0:02:54]}  e6 {[%clk 0:02:34]} 8. d3 {[%clk 0:02:45]}  Nbd7 {[%clk 0:02:32]} 9. O-O {[%clk 0:02:39]}  Be7 {[%clk 0:02:26]} 10. Be3 {[%clk 0:02:33]}  Bc5 {[%clk 0:02:26]} 11. Bxc5 {[%clk 0:02:22]}  Nxc5 {[%clk 0:02:25]} 12. Nd2 {[%clk 0:02:22]}  O-O {[%clk 0:02:21]} 13. Rfc1 {[%clk 0:02:19]}  Ncd7 {[%clk 0:02:18]} 14. Bg2 {[%clk 0:02:14]}  a5 {[%clk 0:02:17]} 15. Nf3 {[%clk 0:02:09]}  Rac8 {[%clk 0:02:06]} 16. h3 {[%clk 0:02:09]}  h6 {[%clk 0:02:01]} 17. e3 {[%clk 0:02:09]}  e5 {[%clk 0:01:47]} 18. cxd5 {[%clk 0:01:56]}  Nxd5 {[%clk 0:01:46]} 19. a3 {[%clk 0:01:56]}  Rfd8 {[%clk 0:01:44]} 20. Nd2 {[%clk 0:01:50]}  N7f6 {[%clk 0:01:36]} 21. Nc4 {[%clk 0:01:49]}  Qc7 {[%clk 0:01:37]} 22. Rab1 {[%clk 0:01:33]}  a4 {[%clk 0:01:17]} 23. Nd2 {[%clk 0:01:30]}  Ra8 {[%clk 0:01:15]} 24. Nf3 {[%clk 0:01:21]}  Qe7 {[%clk 0:01:05]} 25. Qc4 {[%clk 0:01:17]}  Nb6 {[%clk 0:00:45]} 26. Qc3 {[%clk 0:01:12]}  e4 {[%clk 0:00:45]} 27. dxe4 {[%clk 0:01:00]}  Nxe4 {[%clk 0:00:43]} 28. Qc2 {[%clk 0:01:00]}  Nd5 {[%clk 0:00:38]} 29. Kh2 {[%clk 0:00:49]}  h5 {[%clk 0:00:35]} 30. Rd1 {[%clk 0:00:49]}  Re8 {[%clk 0:00:30]} 31. Rd3 {[%clk 0:00:47]}  g5 {[%clk 0:00:26]} 32. Nd4 {[%clk 0:00:43]}  h4 {[%clk 0:00:25]} 33. g4 {[%clk 0:00:38]}  Qe5+ {[%clk 0:00:18]} 34. Kg1 {[%clk 0:00:38]}  Nef6 {[%clk 0:00:18]} 35. Nf5 {[%clk 0:00:36]}  Rad8 {[%clk 0:00:18]} 36. Qxa4 {[%clk 0:00:32]}  Rb8 {[%clk 0:00:17]} 37. Qc2 {[%clk 0:00:31]}  Rbc8 {[%clk 0:00:17]} 38. Rbd1 {[%clk 0:00:31]}  Rb8 {[%clk 0:00:17]} 39. b4 {[%clk 0:00:29]}  Ra8 {[%clk 0:00:16]} 40. Qc4 {[%clk 0:00:28]}  Rab8 {[%clk 0:00:10]} 41. Rf1 {[%clk 0:00:26]}  Ra8 {[%clk 0:00:09]} 42. f4 {[%clk 0:00:26]}  Nxe3 {[%clk 0:00:08]} 43. Rxe3 {[%clk 0:00:25]}  Qc7 {[%clk 0:00:05]} 44. Rxe8+ {[%clk 0:00:21]}  Rxe8 {[%clk 0:00:05]} 45. fxg5 {[%clk 0:00:21]}  Nd7 {[%clk 0:00:04]} 46. Nh6+ {[%clk 0:00:20]}  Kh8 {[%clk 0:00:03]} 47. Qxf7 {[%clk 0:00:19]}  Qb6+ {[%clk 0:00:02]} 48. Kh1 {[%clk 0:00:19]}  Ne5 {[%clk 0:00:01]} 49. Qxe8+ {[%clk 0:00:17]} 1-0


[Site "https://www.chess.com"]

[Event "Titled Tuesday Blitz August 08 Late 2023"]
[White "Hilary46"]
[Black "Kula, Robert"]
[BlackFideId "1101218"]
[WhiteElo "2617"]
[BlackElo "2245"]
[Result "0-1"]
[Round "4"]
[TimeControl "180+1"]
[Date "2023.08.08"]
[WhiteClock "0:00:00"]
[BlackClock "0:00:12"]
[Board "83"]

1. e4 {[%clk 0:02:56]}  e5 {[%clk 0:02:58]} 2. Nf3 {[%clk 0:02:51]}  Nc6 {[%clk 0:02:58]} 3. Bb5 {[%clk 0:02:51]}  Nd4 {[%clk 0:02:58]} 4. Nxd4 {[%clk 0:02:50]}  exd4 {[%clk 0:02:58]} 5. O-O {[%clk 0:02:50]}  Bc5 {[%clk 0:02:58]} 6. d3 {[%clk 0:02:28]}  c6 {[%clk 0:02:55]} 7. Bc4 {[%clk 0:02:28]}  d5 {[%clk 0:02:54]} 8. exd5 {[%clk 0:02:28]}  cxd5 {[%clk 0:02:55]} 9. Bb5+ {[%clk 0:02:26]}  Bd7 {[%clk 0:02:55]} 10. Bxd7+ {[%clk 0:02:26]}  Qxd7 {[%clk 0:02:55]} 11. Re1+ {[%clk 0:02:26]}  Ne7 {[%clk 0:02:55]} 12. Bg5 {[%clk 0:02:26]}  f6 {[%clk 0:02:55]} 13. Bf4 {[%clk 0:02:25]}  O-O {[%clk 0:02:55]} 14. Nd2 {[%clk 0:02:25]}  Rae8 {[%clk 0:02:51]} 15. Nb3 {[%clk 0:02:22]}  Bb6 {[%clk 0:02:50]} 16. h3 {[%clk 0:02:19]}  g5 {[%clk 0:02:41]} 17. Bd2 {[%clk 0:02:13]}  Ng6 {[%clk 0:02:39]} 18. Qg4 {[%clk 0:02:08]}  Qxg4 {[%clk 0:02:23]} 19. hxg4 {[%clk 0:02:09]}  Rc8 {[%clk 0:02:21]} 20. Rac1 {[%clk 0:02:04]}  Kf7 {[%clk 0:02:16]} 21. Kf1 {[%clk 0:01:39]}  Rfd8 {[%clk 0:02:08]} 22. f3 {[%clk 0:01:36]}  a6 {[%clk 0:02:08]} 23. Re2 {[%clk 0:01:36]}  h6 {[%clk 0:01:59]} 24. Ba5 {[%clk 0:01:12]}  Bxa5 {[%clk 0:01:53]} 25. Nxa5 {[%clk 0:01:13]}  Nf4 {[%clk 0:01:53]} 26. Rd2 {[%clk 0:01:12]}  Rd7 {[%clk 0:01:08]} 27. Nb3 {[%clk 0:00:58]}  Ne6 {[%clk 0:01:07]} 28. c3 {[%clk 0:00:48]}  dxc3 {[%clk 0:01:06]} 29. Rxc3 {[%clk 0:00:49]}  Rxc3 {[%clk 0:01:03]} 30. bxc3 {[%clk 0:00:50]}  Rc7 {[%clk 0:01:04]} 31. Rc2 {[%clk 0:00:49]}  b5 {[%clk 0:01:03]} 32. Ke2 {[%clk 0:00:46]}  Nf4+ {[%clk 0:01:03]} 33. Ke3 {[%clk 0:00:45]}  Ke6 {[%clk 0:01:00]} 34. g3 {[%clk 0:00:42]}  Ng6 {[%clk 0:00:59]} 35. f4 {[%clk 0:00:31]}  Kd6 {[%clk 0:00:57]} 36. Nd4 {[%clk 0:00:29]}  Ne7 {[%clk 0:00:31]} 37. Kd2 {[%clk 0:00:24]}  gxf4 {[%clk 0:00:28]} 38. gxf4 {[%clk 0:00:25]}  f5 {[%clk 0:00:26]} 39. gxf5 {[%clk 0:00:23]}  Nc6 {[%clk 0:00:25]} 40. Nxc6 {[%clk 0:00:16]}  Rxc6 {[%clk 0:00:23]} 41. Ke3 {[%clk 0:00:17]}  Kc5 {[%clk 0:00:23]} 42. Rh2 {[%clk 0:00:11]}  Rf6 {[%clk 0:00:23]} 43. Rh5 {[%clk 0:00:12]}  d4+ {[%clk 0:00:21]} 44. cxd4+ {[%clk 0:00:10]}  Kd5 {[%clk 0:00:21]} 45. a3 {[%clk 0:00:07]}  a5 {[%clk 0:00:22]} 46. Rh1 {[%clk 0:00:07]}  b4 {[%clk 0:00:16]} 47. axb4 {[%clk 0:00:07]}  axb4 {[%clk 0:00:17]} 48. Rb1 {[%clk 0:00:08]}  Rb6 {[%clk 0:00:17]} 49. f6 {[%clk 0:00:08]}  Re6+ {[%clk 0:00:16]} 50. Kf3 {[%clk 0:00:06]}  Kxd4 {[%clk 0:00:14]} 51. Rxb4+ {[%clk 0:00:03]}  Kxd3 {[%clk 0:00:14]} 52. Rb5 {[%clk 0:00:02]}  Rxf6 {[%clk 0:00:14]} 53. Rd5+ {[%clk 0:00:02]}  Kc4 {[%clk 0:00:13]} 54. Rd1 {[%clk 0:00:03]}  Kc5 {[%clk 0:00:13]} 55. Kg4 {[%clk 0:00:03]}  Rf8 {[%clk 0:00:13]} 56. f5 {[%clk 0:00:03]}  h5+ {[%clk 0:00:11]} 57. Kg5 {[%clk 0:00:02]}  h4 {[%clk 0:00:11]} 58. f6 {[%clk 0:00:00]}  h3 {[%clk 0:00:12]} 0-1


[Site "https://www.chess.com"]

[Event "Titled Tuesday Blitz August 08 Late 2023"]
[White "Sabar Ethmane Daouda"]
[Black "Miladinovic, Igor"]
[WhiteFideId "19600097"]
[BlackFideId "4203380"]
[WhiteElo "2223"]
[BlackElo "2773"]
[Result "0-1"]
[Round "4"]
[TimeControl "180+1"]
[Date "2023.08.08"]
[WhiteClock "0:01:12"]
[BlackClock "0:02:01"]
[Board "85"]

1. b3 {[%clk 0:02:58]}  e5 {[%clk 0:02:56]} 2. Bb2 {[%clk 0:02:59]}  Nc6 {[%clk 0:02:57]} 3. e3 {[%clk 0:02:59]}  Nf6 {[%clk 0:02:57]} 4. Bb5 {[%clk 0:02:58]}  Bd6 {[%clk 0:02:57]} 5. Bxc6 {[%clk 0:02:57]}  dxc6 {[%clk 0:02:56]} 6. Nf3 {[%clk 0:02:58]}  e4 {[%clk 0:02:55]} 7. Nd4 {[%clk 0:02:58]}  O-O {[%clk 0:02:55]} 8. c4 {[%clk 0:02:57]}  Ng4 {[%clk 0:02:43]} 9. f4 {[%clk 0:02:37]}  exf3 {[%clk 0:02:36]} 10. Nxf3 {[%clk 0:02:36]}  Bxh2 {[%clk 0:02:27]} 11. Qe2 {[%clk 0:01:29]}  Bg3+ {[%clk 0:02:08]} 12. Kf1 {[%clk 0:01:29]}  Bf5 {[%clk 0:02:05]} 13. d4 {[%clk 0:01:25]}  Re8 {[%clk 0:02:02]} 14. Bc1 {[%clk 0:01:20]}  Nf2 {[%clk 0:02:01]} 15. Rh5 {[%clk 0:01:12]}  Bd3 {[%clk 0:02:01]} 0-1


[Site "https://www.chess.com"]

[Event "Titled Tuesday Blitz August 08 Late 2023"]
[White "Mortazavi, Ali"]
[Black "Seemann, Jakub"]
[WhiteFideId "401323"]
[BlackFideId "21874697"]
[WhiteElo "2489"]
[BlackElo "2653"]
[Result "0-1"]
[Round "4"]
[TimeControl "180+1"]
[Date "2023.08.08"]
[WhiteClock "0:00:00"]
[BlackClock "0:00:04"]
[Board "88"]

1. Nf3 {[%clk 0:03:00]}  Nf6 {[%clk 0:02:38]} 2. g3 {[%clk 0:02:59]}  g6 {[%clk 0:02:26]} 3. Bg2 {[%clk 0:02:58]}  Bg7 {[%clk 0:02:17]} 4. O-O {[%clk 0:02:59]}  O-O {[%clk 0:02:16]} 5. d3 {[%clk 0:02:59]}  d5 {[%clk 0:02:13]} 6. Nbd2 {[%clk 0:02:59]}  c5 {[%clk 0:02:09]} 7. e3 {[%clk 0:02:59]}  Nc6 {[%clk 0:02:08]} 8. e4 {[%clk 0:02:59]}  e5 {[%clk 0:01:57]} 9. c3 {[%clk 0:02:58]}  Re8 {[%clk 0:01:52]} 10. Qa4 {[%clk 0:02:57]}  h6 {[%clk 0:01:29]} 11. exd5 {[%clk 0:02:54]}  Nxd5 {[%clk 0:01:30]} 12. Ne4 {[%clk 0:02:55]}  Qe7 {[%clk 0:01:04]} 13. Qc4 {[%clk 0:02:37]}  Be6 {[%clk 0:00:35]} 14. Qxc5 {[%clk 0:02:32]}  Qd7 {[%clk 0:00:35]} 15. Qa3 {[%clk 0:02:31]}  b6 {[%clk 0:00:34]} 16. Qa4 {[%clk 0:02:06]}  Rac8 {[%clk 0:00:31]} 17. Rd1 {[%clk 0:01:58]}  f5 {[%clk 0:00:30]} 18. Ned2 {[%clk 0:01:57]}  Qf7 {[%clk 0:00:21]} 19. Nc4 {[%clk 0:01:47]}  Qc7 {[%clk 0:00:18]} 20. Ne3 {[%clk 0:01:39]}  Nde7 {[%clk 0:00:14]} 21. Qc2 {[%clk 0:01:08]}  Rcd8 {[%clk 0:00:14]} 22. Qe2 {[%clk 0:01:08]}  g5 {[%clk 0:00:13]} 23. Nc2 {[%clk 0:01:02]}  Nd5 {[%clk 0:00:08]} 24. Bxg5 {[%clk 0:01:01]}  hxg5 {[%clk 0:00:08]} 25. Nxg5 {[%clk 0:01:02]}  Bf6 {[%clk 0:00:08]} 26. Nxe6 {[%clk 0:01:00]}  Rxe6 {[%clk 0:00:08]} 27. c4 {[%clk 0:00:39]}  Nde7 {[%clk 0:00:07]} 28. d4 {[%clk 0:00:40]}  Na5 {[%clk 0:00:03]} 29. d5 {[%clk 0:00:35]}  Red6 {[%clk 0:00:03]} 30. b3 {[%clk 0:00:32]}  Bg7 {[%clk 0:00:03]} 31. Rac1 {[%clk 0:00:30]}  Ng6 {[%clk 0:00:04]} 32. Qh5 {[%clk 0:00:29]}  Qf7 {[%clk 0:00:04]} 33. Ne3 {[%clk 0:00:29]}  Rf6 {[%clk 0:00:04]} 34. c5 {[%clk 0:00:24]}  bxc5 {[%clk 0:00:04]} 35. Rxc5 {[%clk 0:00:24]}  Nb7 {[%clk 0:00:04]} 36. Rc6 {[%clk 0:00:22]}  Nd6 {[%clk 0:00:05]} 37. Rdc1 {[%clk 0:00:21]}  e4 {[%clk 0:00:03]} 38. Rc7 {[%clk 0:00:20]}  Rd7 {[%clk 0:00:02]} 39. Rxd7 {[%clk 0:00:18]}  Qxd7 {[%clk 0:00:03]} 40. Bh3 {[%clk 0:00:18]}  Ne5 {[%clk 0:00:03]} 41. Kg2 {[%clk 0:00:17]}  Nd3 {[%clk 0:00:03]} 42. Rc6 {[%clk 0:00:16]}  Qf7 {[%clk 0:00:03]} 43. Qxf7+ {[%clk 0:00:15]}  Kxf7 {[%clk 0:00:04]} 44. Rc7+ {[%clk 0:00:13]}  Kg6 {[%clk 0:00:04]} 45. Rxa7 {[%clk 0:00:14]}  f4 {[%clk 0:00:04]} 46. gxf4 {[%clk 0:00:12]}  Nxf4+ {[%clk 0:00:04]} 47. Kg3 {[%clk 0:00:13]}  Nxh3 {[%clk 0:00:03]} 48. Kxh3 {[%clk 0:00:13]}  Bh6 {[%clk 0:00:03]} 49. Ng4 {[%clk 0:00:12]}  Rf3+ {[%clk 0:00:03]} 50. Kg2 {[%clk 0:00:12]}  Bf4 {[%clk 0:00:04]} 51. h3 {[%clk 0:00:12]}  Nf5 {[%clk 0:00:03]} 52. Ra6+ {[%clk 0:00:11]}  Kg5 {[%clk 0:00:03]} 53. Kf1 {[%clk 0:00:10]}  e3 {[%clk 0:00:02]} 54. Ke2 {[%clk 0:00:10]}  Nd4+ {[%clk 0:00:03]} 55. Kf1 {[%clk 0:00:08]}  e2+ {[%clk 0:00:03]} 56. Ke1 {[%clk 0:00:00]}  Rd3 {[%clk 0:00:04]} 0-1


[Site "https://www.chess.com"]